[Event "Titled Tuesday Blitz February 15 Early 2022"]
[White "Urazayev, Arystanbek"]
[Black "Aradhya, Garg"]
[WhiteFideId "13709810"]
[BlackFideId "25006746"]
[WhiteElo "2321"]
[BlackElo "2169"]
[Result "1-0"]
[Round "11"]
[TimeControl "180+1"]
[Date "2022.02.15"]
[WhiteClock "0:00:35"]
[BlackClock "0:00:38"]

1. d4 {[%clk 0:03:00]}  d5 {[%clk 0:03:00]} 2. c4 {[%clk 0:03:00]}  c6 {[%clk 0:02:59]} 3. Nf3 {[%clk 0:03:01]}  Nf6 {[%clk 0:02:59]} 4. e3 {[%clk 0:03:01]}  Bf5 {[%clk 0:02:59]} 5. Nc3 {[%clk 0:03:00]}  e6 {[%clk 0:02:59]} 6. Nh4 {[%clk 0:03:01]}  h5 {[%clk 0:02:59]} 7. Qb3 {[%clk 0:02:58]}  Qd7 {[%clk 0:02:59]} 8. Nxf5 {[%clk 0:02:54]}  exf5 {[%clk 0:02:59]} 9. Bd2 {[%clk 0:02:53]}  g6 {[%clk 0:02:58]} 10. Rc1 {[%clk 0:02:51]}  Be7 {[%clk 0:02:53]} 11. Na4 {[%clk 0:02:40]}  O-O {[%clk 0:02:50]} 12. cxd5 {[%clk 0:02:35]}  cxd5 {[%clk 0:02:50]} 13. Nc5 {[%clk 0:02:35]}  Bxc5 {[%clk 0:02:50]} 14. Rxc5 {[%clk 0:02:31]}  Nc6 {[%clk 0:02:50]} 15. Bd3 {[%clk 0:02:28]}  f4 {[%clk 0:02:47]} 16. O-O {[%clk 0:02:27]}  Rfe8 {[%clk 0:02:36]} 17. Rfc1 {[%clk 0:02:07]}  Rac8 {[%clk 0:02:08]} 18. Bb5 {[%clk 0:02:01]}  f3 {[%clk 0:02:00]} 19. gxf3 {[%clk 0:01:57]}  Qh3 {[%clk 0:02:00]} 20. Qd1 {[%clk 0:01:57]}  Re6 {[%clk 0:01:57]} 21. Bf1 {[%clk 0:01:57]}  Qf5 {[%clk 0:01:49]} 22. e4 {[%clk 0:01:56]}  Nxe4 {[%clk 0:01:46]} 23. fxe4 {[%clk 0:01:56]}  Rxe4 {[%clk 0:01:47]} 24. Be3 {[%clk 0:01:19]}  Rg4+ {[%clk 0:01:40]} 25. Bg2 {[%clk 0:01:13]}  Qe4 {[%clk 0:01:32]} 26. Qf1 {[%clk 0:01:13]}  Qe6 {[%clk 0:01:20]} 27. Kh1 {[%clk 0:01:10]}  Rh4 {[%clk 0:01:17]} 28. Bxd5 {[%clk 0:00:58]}  Qd6 {[%clk 0:01:12]} 29. Qg2 {[%clk 0:00:58]}  Rg4 {[%clk 0:01:05]} 30. Qf3 {[%clk 0:00:56]}  Rc7 {[%clk 0:01:03]} 31. h3 {[%clk 0:00:51]}  Rh4 {[%clk 0:01:03]} 32. Bxc6 {[%clk 0:00:45]}  bxc6 {[%clk 0:01:01]} 33. Rxc6 {[%clk 0:00:46]}  Rxc6 {[%clk 0:01:01]} 34. Rxc6 {[%clk 0:00:46]}  Qd7 {[%clk 0:01:01]} 35. Kg2 {[%clk 0:00:43]}  Rxh3 {[%clk 0:00:59]} 36. Qxh3 {[%clk 0:00:42]}  Qxc6+ {[%clk 0:01:00]} 37. Qf3 {[%clk 0:00:43]}  Qc4 {[%clk 0:00:54]} 38. d5 {[%clk 0:00:42]}  a5 {[%clk 0:00:51]} 39. d6 {[%clk 0:00:42]}  Qe6 {[%clk 0:00:51]} 40. Bf4 {[%clk 0:00:38]}  g5 {[%clk 0:00:47]} 41. Bxg5 {[%clk 0:00:38]}  Qxd6 {[%clk 0:00:47]} 42. Bf4 {[%clk 0:00:34]}  Qe6 {[%clk 0:00:45]} 43. Qxh5 {[%clk 0:00:31]}  Qxa2 {[%clk 0:00:45]} 44. Qg5+ {[%clk 0:00:32]}  Kh7 {[%clk 0:00:41]} 45. Be5 {[%clk 0:00:30]}  Qd5+ {[%clk 0:00:37]} 46. Kh2 {[%clk 0:00:30]}  f6 {[%clk 0:00:34]} 47. Qxf6 {[%clk 0:00:25]}  Qg8 {[%clk 0:00:32]} 48. Qh4+ {[%clk 0:00:25]}  Kg6 {[%clk 0:00:33]} 49. Qg3+ {[%clk 0:00:26]}  Kf7 {[%clk 0:00:33]} 50. Qxg8+ {[%clk 0:00:27]}  Kxg8 {[%clk 0:00:34]} 51. b3 {[%clk 0:00:25]}  Kf7 {[%clk 0:00:34]} 52. Bc3 {[%clk 0:00:25]}  a4 {[%clk 0:00:34]} 53. bxa4 {[%clk 0:00:25]}  Ke6 {[%clk 0:00:35]} 54. a5 {[%clk 0:00:26]}  Kd7 {[%clk 0:00:36]} 55. Be1 {[%clk 0:00:27]}  Kc6 {[%clk 0:00:36]} 56. Kg3 {[%clk 0:00:28]}  Kb5 {[%clk 0:00:36]} 57. f4 {[%clk 0:00:29]}  Ka6 {[%clk 0:00:37]} 58. Kg4 {[%clk 0:00:30]}  Kb5 {[%clk 0:00:38]} 59. f5 {[%clk 0:00:30]}  Kc6 {[%clk 0:00:38]} 60. Kg5 {[%clk 0:00:31]}  Kd7 {[%clk 0:00:38]} 61. Kg6 {[%clk 0:00:32]}  Ke8 {[%clk 0:00:38]} 62. f6 {[%clk 0:00:33]}  Kf8 {[%clk 0:00:38]} 63. a6 {[%clk 0:00:34]}  Kg8 {[%clk 0:00:38]} 64. a7 {[%clk 0:00:35]}  Kf8 {[%clk 0:00:38]} 65. a8=Q# {[%clk 0:00:35]} 1-0


[Site "https://www.chess.com"]

[Event "Titled Tuesday Blitz February 15 Early 2022"]
[White "Viani Antonio Dcunha"]
[Black "Navara, David"]
[WhiteFideId "5027330"]
[BlackFideId "309095"]
[WhiteElo "2366"]
[BlackElo "2686"]
[Result "0-1"]
[Round "11"]
[TimeControl "180+1"]
[Date "2022.02.15"]
[WhiteClock "0:00:14"]
[BlackClock "0:00:27"]

1. e4 {[%clk 0:03:00]}  c5 {[%clk 0:02:59]} 2. Nf3 {[%clk 0:03:00]}  d6 {[%clk 0:03:00]} 3. d4 {[%clk 0:03:00]}  cxd4 {[%clk 0:03:00]} 4. Nxd4 {[%clk 0:03:00]}  Nf6 {[%clk 0:03:01]} 5. Nc3 {[%clk 0:03:01]}  a6 {[%clk 0:03:02]} 6. Be2 {[%clk 0:03:01]}  e6 {[%clk 0:03:00]} 7. O-O {[%clk 0:03:00]}  Be7 {[%clk 0:02:59]} 8. Be3 {[%clk 0:02:57]}  Qc7 {[%clk 0:02:59]} 9. f4 {[%clk 0:02:54]}  O-O {[%clk 0:02:54]} 10. Bf3 {[%clk 0:02:47]}  Nc6 {[%clk 0:02:52]} 11. Qe1 {[%clk 0:02:44]}  Nxd4 {[%clk 0:02:49]} 12. Bxd4 {[%clk 0:02:45]}  e5 {[%clk 0:02:50]} 13. Be3 {[%clk 0:02:42]}  exf4 {[%clk 0:02:49]} 14. Bxf4 {[%clk 0:02:43]}  Be6 {[%clk 0:02:50]} 15. Kh1 {[%clk 0:02:32]}  Nd7 {[%clk 0:02:47]} 16. Rd1 {[%clk 0:02:25]}  Ne5 {[%clk 0:02:44]} 17. Qg3 {[%clk 0:02:20]}  Rad8 {[%clk 0:02:22]} 18. Qf2 {[%clk 0:01:32]}  Ng6 {[%clk 0:02:15]} 19. Bg3 {[%clk 0:01:29]}  Bf6 {[%clk 0:02:13]} 20. Rd3 {[%clk 0:01:19]}  Bc4 {[%clk 0:02:01]} 21. Nd5 {[%clk 0:01:13]}  Bxd5 {[%clk 0:02:01]} 22. exd5 {[%clk 0:01:03]}  Bxb2 {[%clk 0:02:02]} 23. Rb1 {[%clk 0:00:57]}  Be5 {[%clk 0:02:00]} 24. a4 {[%clk 0:00:55]}  Rc8 {[%clk 0:01:50]} 25. Be4 {[%clk 0:00:43]}  Qxc2 {[%clk 0:01:35]} 26. Qxc2 {[%clk 0:00:44]}  Rxc2 {[%clk 0:01:36]} 27. Bxe5 {[%clk 0:00:43]}  dxe5 {[%clk 0:01:31]} 28. d6 {[%clk 0:00:35]}  Rd8 {[%clk 0:01:17]} 29. g3 {[%clk 0:00:32]}  Rc4 {[%clk 0:01:16]} 30. Bxb7 {[%clk 0:00:27]}  Rxa4 {[%clk 0:01:17]} 31. Rc1 {[%clk 0:00:20]}  Kf8 {[%clk 0:00:51]} 32. Rc8 {[%clk 0:00:17]}  Rxc8 {[%clk 0:00:51]} 33. Bxc8 {[%clk 0:00:18]}  Rd4 {[%clk 0:00:52]} 34. Ra3 {[%clk 0:00:14]}  Rxd6 {[%clk 0:00:50]} 35. Bxa6 {[%clk 0:00:15]}  Ne7 {[%clk 0:00:47]} 36. Bc4 {[%clk 0:00:16]}  g6 {[%clk 0:00:43]} 37. Ra7 {[%clk 0:00:16]}  h5 {[%clk 0:00:40]} 38. Kg2 {[%clk 0:00:16]}  Rd2+ {[%clk 0:00:34]} 39. Kf3 {[%clk 0:00:16]}  Rxh2 {[%clk 0:00:33]} 40. Ra8+ {[%clk 0:00:16]}  Kg7 {[%clk 0:00:33]} 41. Ra7 {[%clk 0:00:17]}  Rc2 {[%clk 0:00:27]} 42. Bb3 {[%clk 0:00:14]}  Rc3+ {[%clk 0:00:27]} 0-1


[Site "https://www.chess.com"]

[Event "Titled Tuesday Blitz February 15 Early 2022"]
[White "Vifleemskaia, Svetlana"]
[Black "Bashirli, Saadat"]
[WhiteFideId "4129490"]
[BlackFideId "13429990"]
[WhiteElo "1901"]
[BlackElo "1173"]
[Result "1-0"]
[Round "11"]
[TimeControl "180+1"]
[Date "2022.02.15"]
[WhiteClock "0:01:18"]
[BlackClock "0:01:00"]

1. d4 {[%clk 0:03:00]}  d5 {[%clk 0:02:55]} 2. c4 {[%clk 0:03:00]}  e6 {[%clk 0:02:55]} 3. Nc3 {[%clk 0:03:00]}  c6 {[%clk 0:02:53]} 4. cxd5 {[%clk 0:02:59]}  exd5 {[%clk 0:02:54]} 5. Qc2 {[%clk 0:03:00]}  Nf6 {[%clk 0:02:54]} 6. Bg5 {[%clk 0:02:56]}  Be7 {[%clk 0:02:53]} 7. e3 {[%clk 0:02:55]}  O-O {[%clk 0:02:53]} 8. Bd3 {[%clk 0:02:55]}  h6 {[%clk 0:02:52]} 9. Bh4 {[%clk 0:02:46]}  Be6 {[%clk 0:02:50]} 10. Nge2 {[%clk 0:02:45]}  Nbd7 {[%clk 0:02:49]} 11. f3 {[%clk 0:02:45]}  c5 {[%clk 0:02:48]} 12. O-O {[%clk 0:02:45]}  c4 {[%clk 0:02:47]} 13. Bf5 {[%clk 0:02:44]}  Bxf5 {[%clk 0:02:43]} 14. Qxf5 {[%clk 0:02:43]}  Nb6 {[%clk 0:02:43]} 15. a4 {[%clk 0:02:40]}  a5 {[%clk 0:02:39]} 16. Nb5 {[%clk 0:02:36]}  Re8 {[%clk 0:02:34]} 17. Nec3 {[%clk 0:02:34]}  Rc8 {[%clk 0:02:25]} 18. Bf2 {[%clk 0:02:33]}  Bb4 {[%clk 0:02:23]} 19. e4 {[%clk 0:02:18]}  dxe4 {[%clk 0:02:20]} 20. fxe4 {[%clk 0:02:18]}  Bxc3 {[%clk 0:02:20]} 21. Nxc3 {[%clk 0:02:17]}  Nbd7 {[%clk 0:02:05]} 22. e5 {[%clk 0:02:00]}  Nh7 {[%clk 0:02:03]} 23. Be3 {[%clk 0:01:56]}  Rf8 {[%clk 0:01:56]} 24. Ne4 {[%clk 0:01:46]}  Nb6 {[%clk 0:01:52]} 25. Nd6 {[%clk 0:01:45]}  Rc7 {[%clk 0:01:47]} 26. Qe4 {[%clk 0:01:44]}  Qe7 {[%clk 0:01:44]} 27. h4 {[%clk 0:01:37]}  Nd7 {[%clk 0:01:32]} 28. Qg4 {[%clk 0:01:23]}  Kh8 {[%clk 0:01:20]} 29. Nf5 {[%clk 0:01:22]}  Nxe5 {[%clk 0:01:00]} 30. Qxg7# {[%clk 0:01:18]} 1-0


[Site "https://www.chess.com"]

[Event "Titled Tuesday Blitz February 15 Early 2022"]
[White "Visakh N R"]
[Black "Bortnyk, Olexandr"]
[WhiteFideId "25012223"]
[BlackFideId "14120828"]
[WhiteElo "2454"]
[BlackElo "2723"]
[Result "0-1"]
[Round "11"]
[TimeControl "180+1"]
[Date "2022.02.15"]
[WhiteClock "0:01:57"]
[BlackClock "0:01:38"]

1. e4 {[%clk 0:03:00]}  Nf6 {[%clk 0:02:57]} 2. e5 {[%clk 0:02:59]}  Nd5 {[%clk 0:02:57]} 3. Nc3 {[%clk 0:03:00]}  Nb6 {[%clk 0:02:41]} 4. Nf3 {[%clk 0:02:58]}  d5 {[%clk 0:02:40]} 5. d4 {[%clk 0:02:54]}  Bg4 {[%clk 0:02:40]} 6. h3 {[%clk 0:02:52]}  Bh5 {[%clk 0:02:37]} 7. Ne2 {[%clk 0:02:50]}  e6 {[%clk 0:02:37]} 8. Nf4 {[%clk 0:02:50]}  Bg6 {[%clk 0:02:37]} 9. c3 {[%clk 0:02:44]}  c5 {[%clk 0:02:37]} 10. h4 {[%clk 0:02:38]}  Nc6 {[%clk 0:02:33]} 11. Bb5 {[%clk 0:02:33]}  Nd7 {[%clk 0:02:30]} 12. O-O {[%clk 0:02:24]}  Be7 {[%clk 0:02:23]} 13. h5 {[%clk 0:02:23]}  Bf5 {[%clk 0:02:24]} 14. c4 {[%clk 0:02:17]}  a6 {[%clk 0:02:20]} 15. Ba4 {[%clk 0:02:01]}  dxc4 {[%clk 0:01:53]} 16. d5 {[%clk 0:02:02]}  exd5 {[%clk 0:01:52]} 17. Nxd5 {[%clk 0:02:01]}  b5 {[%clk 0:01:50]} 18. Bc2 {[%clk 0:02:02]}  Bxc2 {[%clk 0:01:49]} 19. Qxc2 {[%clk 0:02:02]}  Ndxe5 {[%clk 0:01:48]} 20. Qe4 {[%clk 0:01:57]}  f5 {[%clk 0:01:38]} 0-1


[Site "https://www.chess.com"]

[Event "Titled Tuesday Blitz February 15 Early 2022"]
[White "Viskelis, Darius"]
[Black "Osiecki, Stanislaw"]
[WhiteFideId "12800830"]
[BlackFideId "1102990"]
[WhiteElo "1999"]
[BlackElo "2127"]
[Result "0-1"]
[Round "11"]
[TimeControl "180+1"]
[Date "2022.02.15"]
[WhiteClock "0:00:23"]
[BlackClock "0:00:08"]

1. e4 {[%clk 0:03:00]}  e6 {[%clk 0:02:59]} 2. d4 {[%clk 0:03:00]}  d5 {[%clk 0:03:00]} 3. e5 {[%clk 0:03:01]}  c5 {[%clk 0:02:59]} 4. c3 {[%clk 0:03:02]}  Nc6 {[%clk 0:02:59]} 5. Nf3 {[%clk 0:03:02]}  Qb6 {[%clk 0:02:59]} 6. Bd3 {[%clk 0:03:02]}  cxd4 {[%clk 0:02:59]} 7. cxd4 {[%clk 0:03:03]}  Nb4 {[%clk 0:02:59]} 8. Be2 {[%clk 0:03:01]}  Ne7 {[%clk 0:02:58]} 9. Nc3 {[%clk 0:02:59]}  Nf5 {[%clk 0:02:58]} 10. O-O {[%clk 0:02:55]}  Nc6 {[%clk 0:02:57]} 11. Be3 {[%clk 0:02:53]}  a6 {[%clk 0:02:38]} 12. Na4 {[%clk 0:02:45]}  Qd8 {[%clk 0:02:38]} 13. Rc1 {[%clk 0:02:44]}  Be7 {[%clk 0:02:37]} 14. Nc5 {[%clk 0:02:44]}  O-O {[%clk 0:02:33]} 15. Bd3 {[%clk 0:02:39]}  Nxe3 {[%clk 0:02:32]} 16. fxe3 {[%clk 0:02:38]}  Bg5 {[%clk 0:02:20]} 17. Nxg5 {[%clk 0:02:32]}  Qxg5 {[%clk 0:02:19]} 18. Qf3 {[%clk 0:02:33]}  f5 {[%clk 0:01:49]} 19. exf6 {[%clk 0:02:31]}  Rxf6 {[%clk 0:01:49]} 20. Qh3 {[%clk 0:02:31]}  Rh6 {[%clk 0:01:44]} 21. Qf3 {[%clk 0:02:27]}  Rf6 {[%clk 0:01:43]} 22. Qe2 {[%clk 0:02:23]}  e5 {[%clk 0:01:35]} 23. Rxf6 {[%clk 0:02:20]}  Qxf6 {[%clk 0:01:34]} 24. Rf1 {[%clk 0:02:06]}  Qh6 {[%clk 0:01:29]} 25. Qf3 {[%clk 0:01:52]}  Be6 {[%clk 0:01:27]} 26. Nxe6 {[%clk 0:01:46]}  Qxe6 {[%clk 0:01:26]} 27. Bf5 {[%clk 0:01:43]}  Qd6 {[%clk 0:01:12]} 28. Qh3 {[%clk 0:01:29]}  h6 {[%clk 0:00:50]} 29. Be6+ {[%clk 0:01:25]}  Kh8 {[%clk 0:00:50]} 30. Rf7 {[%clk 0:01:19]}  exd4 {[%clk 0:00:30]} 31. Qg4 {[%clk 0:01:08]}  Qe5 {[%clk 0:00:27]} 32. exd4 {[%clk 0:00:57]}  Nxd4 {[%clk 0:00:20]} 33. Bxd5 {[%clk 0:00:44]}  Qe1+ {[%clk 0:00:17]} 34. Rf1 {[%clk 0:00:43]}  Ne2+ {[%clk 0:00:14]} 35. Qxe2 {[%clk 0:00:30]}  Qxe2 {[%clk 0:00:14]} 36. Bxb7 {[%clk 0:00:30]}  Rb8 {[%clk 0:00:13]} 37. Bf3 {[%clk 0:00:29]}  Qxb2 {[%clk 0:00:13]} 38. a4 {[%clk 0:00:28]}  Qb6+ {[%clk 0:00:12]} 39. Kh1 {[%clk 0:00:28]}  Qb4 {[%clk 0:00:10]} 40. Ra1 {[%clk 0:00:27]}  Re8 {[%clk 0:00:09]} 41. h3 {[%clk 0:00:25]}  Re1+ {[%clk 0:00:08]} 42. Rxe1 {[%clk 0:00:26]}  Qxe1+ {[%clk 0:00:08]} 43. Kh2 {[%clk 0:00:27]}  Qa1 {[%clk 0:00:08]} 44. Bc6 {[%clk 0:00:27]}  a5 {[%clk 0:00:08]} 45. Bb5 {[%clk 0:00:27]}  Qd4 {[%clk 0:00:08]} 46. Kg3 {[%clk 0:00:27]}  Qe5+ {[%clk 0:00:08]} 47. Kf2 {[%clk 0:00:27]}  g5 {[%clk 0:00:09]} 48. Kf3 {[%clk 0:00:27]}  Kg7 {[%clk 0:00:10]} 49. Kg4 {[%clk 0:00:27]}  Kf6 {[%clk 0:00:10]} 50. Kf3 {[%clk 0:00:28]}  Qf4+ {[%clk 0:00:10]} 51. Ke2 {[%clk 0:00:28]}  h5 {[%clk 0:00:10]} 52. Ke1 {[%clk 0:00:27]}  Qe3+ {[%clk 0:00:09]} 53. Kf1 {[%clk 0:00:27]}  Ke5 {[%clk 0:00:08]} 54. Bc6 {[%clk 0:00:26]}  Kf4 {[%clk 0:00:08]} 55. g4 {[%clk 0:00:25]}  Kg3 {[%clk 0:00:08]} 56. Bg2 {[%clk 0:00:23]}  Qf2# {[%clk 0:00:08]} 0-1


[Site "https://www.chess.com"]

[Event "Titled Tuesday Blitz February 15 Early 2022"]
[White "Vlassov, Nikolai"]
[Black "Shukhman, Anna"]
[WhiteFideId "4103360"]
[BlackFideId "54180058"]
[WhiteElo "2407"]
[BlackElo "1628"]
[Result "0-1"]
[Round "11"]
[TimeControl "180+1"]
[Date "2022.02.15"]
[WhiteClock "0:00:04"]
[BlackClock "0:00:18"]

1. e4 {[%clk 0:03:00]}  c5 {[%clk 0:02:59]} 2. c3 {[%clk 0:03:01]}  Nf6 {[%clk 0:02:58]} 3. e5 {[%clk 0:03:01]}  Nd5 {[%clk 0:02:58]} 4. d4 {[%clk 0:03:02]}  cxd4 {[%clk 0:02:57]} 5. cxd4 {[%clk 0:03:03]}  d6 {[%clk 0:02:57]} 6. Bc4 {[%clk 0:03:03]}  e6 {[%clk 0:02:55]} 7. Nf3 {[%clk 0:03:02]}  Nc6 {[%clk 0:02:55]} 8. O-O {[%clk 0:03:02]}  Be7 {[%clk 0:02:55]} 9. Qe2 {[%clk 0:03:03]}  O-O {[%clk 0:02:54]} 10. Qe4 {[%clk 0:03:03]}  dxe5 {[%clk 0:02:37]} 11. dxe5 {[%clk 0:03:03]}  Qc7 {[%clk 0:02:33]} 12. Bd3 {[%clk 0:03:01]}  g6 {[%clk 0:02:32]} 13. Bh6 {[%clk 0:03:01]}  Rd8 {[%clk 0:02:31]} 14. Nc3 {[%clk 0:03:01]}  Nxc3 {[%clk 0:02:30]} 15. bxc3 {[%clk 0:03:01]}  b6 {[%clk 0:02:30]} 16. Rfe1 {[%clk 0:02:54]}  Bb7 {[%clk 0:02:29]} 17. Rad1 {[%clk 0:02:54]}  Nd4 {[%clk 0:02:24]} 18. Qf4 {[%clk 0:02:35]}  Nxf3+ {[%clk 0:02:20]} 19. gxf3 {[%clk 0:02:35]}  Qxc3 {[%clk 0:02:19]} 20. Be4 {[%clk 0:02:21]}  Bxe4 {[%clk 0:02:04]} 21. Qxe4 {[%clk 0:02:07]}  Bf8 {[%clk 0:01:51]} 22. Bg5 {[%clk 0:02:02]}  Rxd1 {[%clk 0:01:47]} 23. Rxd1 {[%clk 0:02:02]}  Re8 {[%clk 0:01:28]} 24. Rd7 {[%clk 0:01:49]}  Qb4 {[%clk 0:01:13]} 25. Qxb4 {[%clk 0:01:39]}  Bxb4 {[%clk 0:01:12]} 26. Rxa7 {[%clk 0:01:39]}  Rc8 {[%clk 0:00:57]} 27. Kg2 {[%clk 0:01:30]}  Kf8 {[%clk 0:00:51]} 28. Bf6 {[%clk 0:01:29]}  Ke8 {[%clk 0:00:51]} 29. f4 {[%clk 0:01:20]}  h5 {[%clk 0:00:49]} 30. Bg5 {[%clk 0:01:09]}  Rc2 {[%clk 0:00:43]} 31. Kf3 {[%clk 0:01:02]}  Bc5 {[%clk 0:00:39]} 32. Bh4 {[%clk 0:01:03]}  Rc3+ {[%clk 0:00:38]} 33. Ke2 {[%clk 0:00:58]}  Rc4 {[%clk 0:00:36]} 34. Bg3 {[%clk 0:00:54]}  h4 {[%clk 0:00:34]} 35. Bxh4 {[%clk 0:00:53]}  Rxf4 {[%clk 0:00:34]} 36. Bg3 {[%clk 0:00:54]}  Re4+ {[%clk 0:00:33]} 37. Kd3 {[%clk 0:00:53]}  Rd4+ {[%clk 0:00:32]} 38. Kc3 {[%clk 0:00:53]}  Rd7 {[%clk 0:00:31]} 39. Ra8+ {[%clk 0:00:52]}  Rd8 {[%clk 0:00:31]} 40. Ra6 {[%clk 0:00:50]}  Rc8 {[%clk 0:00:27]} 41. Kb3 {[%clk 0:00:47]}  Kd7 {[%clk 0:00:26]} 42. f4 {[%clk 0:00:36]}  Kc6 {[%clk 0:00:26]} 43. Ra7 {[%clk 0:00:35]}  Rc7 {[%clk 0:00:26]} 44. Ra8 {[%clk 0:00:35]}  Rd7 {[%clk 0:00:25]} 45. a4 {[%clk 0:00:30]}  Rd3+ {[%clk 0:00:24]} 46. Kc4 {[%clk 0:00:25]}  Rd4+ {[%clk 0:00:24]} 47. Kc3 {[%clk 0:00:26]}  Rd1 {[%clk 0:00:24]} 48. Ra7 {[%clk 0:00:23]}  Rd7 {[%clk 0:00:23]} 49. Ra8 {[%clk 0:00:22]}  Rd1 {[%clk 0:00:22]} 50. Rc8+ {[%clk 0:00:21]}  Kb7 {[%clk 0:00:22]} 51. Rg8 {[%clk 0:00:18]}  Rc1+ {[%clk 0:00:20]} 52. Kb2 {[%clk 0:00:16]}  Rc4 {[%clk 0:00:20]} 53. Rg7 {[%clk 0:00:16]}  Rxa4 {[%clk 0:00:20]} 54. Rxf7+ {[%clk 0:00:16]}  Ka6 {[%clk 0:00:20]} 55. Rf6 {[%clk 0:00:17]}  Re4 {[%clk 0:00:19]} 56. Rxe6 {[%clk 0:00:17]}  Bd4+ {[%clk 0:00:19]} 57. Kc2 {[%clk 0:00:17]}  Re3 {[%clk 0:00:19]} 58. Rxg6 {[%clk 0:00:17]}  Ka5 {[%clk 0:00:19]} 59. h4 {[%clk 0:00:17]}  b5 {[%clk 0:00:19]} 60. h5 {[%clk 0:00:17]}  b4 {[%clk 0:00:19]} 61. h6 {[%clk 0:00:18]}  b3+ {[%clk 0:00:19]} 62. Kb1 {[%clk 0:00:13]}  Rf3 {[%clk 0:00:19]} 63. Be1+ {[%clk 0:00:08]}  Kb5 {[%clk 0:00:19]} 64. Rg8 {[%clk 0:00:04]}  Rf1 {[%clk 0:00:19]} 65. Rb8+ {[%clk 0:00:04]}  Kc4 {[%clk 0:00:19]} 66. Rc8+ {[%clk 0:00:04]}  Bc5 {[%clk 0:00:19]} 67. Rxc5+ {[%clk 0:00:02]}  Kxc5 {[%clk 0:00:19]} 68. h7 {[%clk 0:00:03]}  Rxe1+ {[%clk 0:00:19]} 69. Kb2 {[%clk 0:00:03]}  Rh1 {[%clk 0:00:20]} 70. f5 {[%clk 0:00:02]}  Rxh7 {[%clk 0:00:19]} 71. f6 {[%clk 0:00:03]}  Kd5 {[%clk 0:00:19]} 72. Kxb3 {[%clk 0:00:04]}  Kxe5 {[%clk 0:00:18]} 73. Kc4 {[%clk 0:00:04]}  Kxf6 {[%clk 0:00:18]} 0-1


[Site "https://www.chess.com"]

[Event "Titled Tuesday Blitz February 15 Early 2022"]
[White "Weetik, Vjacheslav"]
[Black "Kovanova, Baira"]
[WhiteFideId "4153472"]
[BlackFideId "4164083"]
[WhiteElo "2469"]
[BlackElo "2190"]
[Result "1/2-1/2"]
[Round "11"]
[TimeControl "180+1"]
[Date "2022.02.15"]
[WhiteClock "0:00:12"]
[BlackClock "0:00:09"]

1. d4 {[%clk 0:02:52]}  Nf6 {[%clk 0:02:58]} 2. Bf4 {[%clk 0:02:52]}  e6 {[%clk 0:02:54]} 3. e3 {[%clk 0:02:52]}  d5 {[%clk 0:02:53]} 4. Nd2 {[%clk 0:02:52]}  Bd6 {[%clk 0:02:43]} 5. c3 {[%clk 0:02:52]}  c5 {[%clk 0:02:43]} 6. Bxd6 {[%clk 0:02:51]}  Qxd6 {[%clk 0:02:42]} 7. Bd3 {[%clk 0:02:51]}  Nc6 {[%clk 0:02:41]} 8. f4 {[%clk 0:02:51]}  cxd4 {[%clk 0:02:38]} 9. cxd4 {[%clk 0:02:51]}  b6 {[%clk 0:02:21]} 10. a3 {[%clk 0:02:51]}  Bb7 {[%clk 0:02:21]} 11. Ngf3 {[%clk 0:02:50]}  O-O {[%clk 0:02:17]} 12. Ne5 {[%clk 0:02:48]}  Ne7 {[%clk 0:02:14]} 13. Qf3 {[%clk 0:02:48]}  Rac8 {[%clk 0:02:13]} 14. O-O {[%clk 0:02:47]}  Nf5 {[%clk 0:01:46]} 15. g4 {[%clk 0:02:45]}  Ne4 {[%clk 0:01:40]} 16. gxf5 {[%clk 0:02:02]}  Nxd2 {[%clk 0:01:39]} 17. Qh3 {[%clk 0:02:02]}  exf5 {[%clk 0:00:56]} 18. Bxf5 {[%clk 0:02:02]}  g6 {[%clk 0:00:56]} 19. Bxc8 {[%clk 0:01:53]}  Bxc8 {[%clk 0:00:55]} 20. Qh4 {[%clk 0:01:40]}  Nxf1 {[%clk 0:00:54]} 21. Rxf1 {[%clk 0:01:40]}  Bf5 {[%clk 0:00:53]} 22. Rc1 {[%clk 0:01:40]}  f6 {[%clk 0:00:50]} 23. Ng4 {[%clk 0:01:34]}  Qe7 {[%clk 0:00:48]} 24. Nh6+ {[%clk 0:01:29]}  Kh8 {[%clk 0:00:47]} 25. Rc3 {[%clk 0:01:22]}  Be4 {[%clk 0:00:43]} 26. Kf2 {[%clk 0:01:21]}  Kg7 {[%clk 0:00:41]} 27. Ke1 {[%clk 0:01:13]}  Qd7 {[%clk 0:00:40]} 28. Ng4 {[%clk 0:01:12]}  h5 {[%clk 0:00:40]} 29. Nf2 {[%clk 0:01:12]}  Rc8 {[%clk 0:00:39]} 30. Nxe4 {[%clk 0:01:07]}  dxe4 {[%clk 0:00:38]} 31. Qf2 {[%clk 0:00:47]}  Rxc3 {[%clk 0:00:37]} 32. bxc3 {[%clk 0:00:48]}  Qb5 {[%clk 0:00:37]} 33. Qc2 {[%clk 0:00:47]}  Qc4 {[%clk 0:00:37]} 34. Qxe4 {[%clk 0:00:34]}  Qxc3+ {[%clk 0:00:37]} 35. Kf2 {[%clk 0:00:30]}  Qd2+ {[%clk 0:00:35]} 36. Kf1 {[%clk 0:00:24]}  Qd1+ {[%clk 0:00:35]} 37. Kf2 {[%clk 0:00:25]}  Qd2+ {[%clk 0:00:35]} 38. Kg3 {[%clk 0:00:21]}  Qd1 {[%clk 0:00:35]} 39. Qe7+ {[%clk 0:00:20]}  Kh6 {[%clk 0:00:33]} 40. Qf8+ {[%clk 0:00:19]}  Kh7 {[%clk 0:00:33]} 41. Qf7+ {[%clk 0:00:18]}  Kh6 {[%clk 0:00:33]} 42. Qxf6 {[%clk 0:00:16]}  Qg1+ {[%clk 0:00:23]} 43. Kf3 {[%clk 0:00:15]}  Qh1+ {[%clk 0:00:22]} 44. Ke2 {[%clk 0:00:14]}  Qxh2+ {[%clk 0:00:16]} 45. Kd3 {[%clk 0:00:14]}  Kh7 {[%clk 0:00:16]} 46. Qf7+ {[%clk 0:00:10]}  Kh6 {[%clk 0:00:16]} 47. Qf8+ {[%clk 0:00:09]}  Kh7 {[%clk 0:00:16]} 48. d5 {[%clk 0:00:09]}  Qa2 {[%clk 0:00:14]} 49. Qe7+ {[%clk 0:00:08]}  Kh6 {[%clk 0:00:13]} 50. d6 {[%clk 0:00:09]}  Qd5+ {[%clk 0:00:13]} 51. Ke2 {[%clk 0:00:08]}  Qg2+ {[%clk 0:00:12]} 52. Kd3 {[%clk 0:00:09]}  Qd5+ {[%clk 0:00:13]} 53. Kc3 {[%clk 0:00:09]}  Qc5+ {[%clk 0:00:13]} 54. Kd2 {[%clk 0:00:10]}  Qd5+ {[%clk 0:00:13]} 55. Ke1 {[%clk 0:00:10]}  Qh1+ {[%clk 0:00:13]} 56. Kf2 {[%clk 0:00:10]}  Qh2+ {[%clk 0:00:12]} 57. Kf3 {[%clk 0:00:11]}  Qh1+ {[%clk 0:00:12]} 58. Ke2 {[%clk 0:00:11]}  Qg2+ {[%clk 0:00:12]} 59. Kd1 {[%clk 0:00:12]}  Qd5+ {[%clk 0:00:11]} 60. Ke1 {[%clk 0:00:11]}  Qh1+ {[%clk 0:00:11]} 61. Kd2 {[%clk 0:00:11]}  Qd5+ {[%clk 0:00:11]} 62. Kc1 {[%clk 0:00:12]}  Qc4+ {[%clk 0:00:09]} 63. Kb2 {[%clk 0:00:11]}  Qb5+ {[%clk 0:00:09]} 64. Kc3 {[%clk 0:00:11]}  Qc5+ {[%clk 0:00:09]} 65. Kd2 {[%clk 0:00:12]}  Qd5+ {[%clk 0:00:09]} 1/2-1/2


[Site "https://www.chess.com"]